[Event "Early-Titled-Tuesday-Blitz-September-12-2023"]
[Site "Chess.com"]
[Date "2023.09.12"]
[Round "2"]
[White "Kapitan_Bayan"]
[Black "Barmen_EV"]
[Result "1-0"]
[WhiteElo "2206"]
[BlackElo "2457"]
[TimeControl "180+1"]
[EndTime "8:19:33 PDT"]
[Termination "Kapitan_Bayan won by checkmate"]

1. e4 {[%clk 0:02:56.9]} 1... d5 {[%clk 0:02:22.9]} 2. exd5 {[%clk 0:02:55.9]}
2... Nf6 {[%clk 0:02:23.8]} 3. d4 {[%clk 0:02:51.5]} 3... Bg4 {[%clk 0:02:23.9]}
4. Nf3 {[%clk 0:02:36.1]} 4... Qxd5 {[%clk 0:02:22]} 5. Be2 {[%clk 0:02:26.6]}
5... Nc6 {[%clk 0:02:20.1]} 6. c4 {[%clk 0:02:23.2]} 6... Qh5 {[%clk 0:01:32.7]}
7. d5 {[%clk 0:02:10.4]} 7... O-O-O {[%clk 0:01:33.6]} 8. Nc3 {[%clk 0:02:02.2]}
8... e6 {[%clk 0:01:33.4]} 9. O-O {[%clk 0:01:14.2]} 9... exd5 {[%clk 0:01:31]}
10. cxd5 {[%clk 0:01:13.9]} 10... Bd6 {[%clk 0:01:26.1]} 11. h3 {[%clk
0:01:04.8]} 11... Rhe8 {[%clk 0:01:24.6]} 12. hxg4 {[%clk 0:00:38.8]} 12... Nxg4
{[%clk 0:01:25.5]} 13. g3 {[%clk 0:00:39.2]} 13... Nce5 {[%clk 0:01:11.7]} 14.
Nh4 {[%clk 0:00:27.6]} 14... g5 {[%clk 0:01:00.4]} 15. f3 {[%clk 0:00:21.2]}
15... Bc5+ {[%clk 0:00:44.1]} 16. Kg2 {[%clk 0:00:19.9]} 16... Nf2 {[%clk
0:00:19.8]} 17. Rxf2 {[%clk 0:00:17.8]} 17... gxh4 {[%clk 0:00:20.7]} 18. g4
{[%clk 0:00:15.4]} 18... h3+ {[%clk 0:00:19]} 19. Kh2 {[%clk 0:00:15.8]} 19...
Qh4 {[%clk 0:00:18.8]} 20. Rf1 {[%clk 0:00:15.1]} 20... Bd6 {[%clk 0:00:16.5]}
21. Bf4 {[%clk 0:00:14]} 21... Ng6 {[%clk 0:00:11]} 22. Bxd6 {[%clk 0:00:12.9]}
22... Rxd6 {[%clk 0:00:11.9]} 23. Ne4 {[%clk 0:00:13.1]} 23... Rd7 {[%clk
0:00:07.6]} 24. Qe1 {[%clk 0:00:13.2]} 24... Qd8 {[%clk 0:00:06.5]} 25. Rd1
{[%clk 0:00:12.5]} 25... Nf4 {[%clk 0:00:06]} 26. Bb5 {[%clk 0:00:10.7]} 26...
c6 {[%clk 0:00:02.2]} 27. dxc6 {[%clk 0:00:11.6]} 27... Rxd1 {[%clk 0:00:02.3]}
28. Qxd1 {[%clk 0:00:11.9]} 28... Qxd1 {[%clk 0:00:02]} 29. Rxd1 {[%clk
0:00:12.6]} 29... bxc6 {[%clk 0:00:02.4]} 30. Bxc6 {[%clk 0:00:13.2]} 30... Re5
{[%clk 0:00:03]} 31. Nd6+ {[%clk 0:00:11]} 31... Kc7 {[%clk 0:00:03.1]} 32. Be4
{[%clk 0:00:09.7]} 32... Rc5 {[%clk 0:00:02]} 33. Nxf7 {[%clk 0:00:08.7]} 33...
Rb5 {[%clk 0:00:01.5]} 34. b3 {[%clk 0:00:08.4]} 34... Ra5 {[%clk 0:00:02.4]}
35. a4 {[%clk 0:00:08.2]} 35... Rc5 {[%clk 0:00:02.9]} 36. b4 {[%clk 0:00:07.6]}
36... Rc3 {[%clk 0:00:03.8]} 37. Ne5 {[%clk 0:00:06.6]} 37... Ng2 {[%clk
0:00:03.2]} 38. Kxh3 {[%clk 0:00:06.3]} 38... Ne3 {[%clk 0:00:03.3]} 39. Rd3
{[%clk 0:00:06.3]} 39... Rxd3 {[%clk 0:00:02.6]} 40. Bxd3 {[%clk 0:00:07.2]}
40... Nd5 {[%clk 0:00:02.9]} 41. b5 {[%clk 0:00:07.2]} 41... Kb6 {[%clk
0:00:03.3]} 42. Kh4 {[%clk 0:00:06.9]} 42... Ka5 {[%clk 0:00:01.9]} 43. Bc2
{[%clk 0:00:07.4]} 43... Kb4 {[%clk 0:00:01.8]} 44. Kh5 {[%clk 0:00:07.1]} 44...
Kc3 {[%clk 0:00:02.7]} 45. Bd1 {[%clk 0:00:06.6]} 45... Kd4 {[%clk 0:00:03.6]}
46. Nc6+ {[%clk 0:00:05]} 46... Ke3 {[%clk 0:00:03.1]} 47. Kh6 {[%clk
0:00:04.9]} 47... Nf4 {[%clk 0:00:02.7]} 48. Kxh7 {[%clk 0:00:05]} 48... Ne6
{[%clk 0:00:02.8]} 49. Nxa7 {[%clk 0:00:04.1]} 49... Kf4 {[%clk 0:00:03.5]} 50.
b6 {[%clk 0:00:04.4]} 50... Ng5+ {[%clk 0:00:04.3]} 51. Kg6 {[%clk 0:00:04.1]}
51... Ne6 {[%clk 0:00:02]} 52. b7 {[%clk 0:00:04.8]} 52... Ke5 {[%clk
0:00:02.2]} 53. b8=Q+ {[%clk 0:00:05.3]} 53... Kd4 {[%clk 0:00:02.7]} 54. Qb4+
{[%clk 0:00:05.9]} 54... Ke5 {[%clk 0:00:02.6]} 55. Qb3 {[%clk 0:00:06.3]} 55...
Nf4+ {[%clk 0:00:02.5]} 56. Kg7 {[%clk 0:00:06.9]} 56... Ng2 {[%clk 0:00:02.7]}
57. Qb2+ {[%clk 0:00:07.5]} 57... Kf4 {[%clk 0:00:03.5]} 58. Qxg2 {[%clk
0:00:07.2]} 58... Ke3 {[%clk 0:00:04.4]} 59. Kh6 {[%clk 0:00:07.9]} 59... Kf4
{[%clk 0:00:05.3]} 60. g5 {[%clk 0:00:08.8]} 60... Ke3 {[%clk 0:00:06.1]} 61. g6
{[%clk 0:00:09.7]} 61... Kf4 {[%clk 0:00:07]} 62. g7 {[%clk 0:00:10.6]} 62...
Ke3 {[%clk 0:00:07.9]} 63. g8=Q {[%clk 0:00:11.5]} 63... Kf4 {[%clk 0:00:08.8]}
64. Qf7+ {[%clk 0:00:11.9]} 64... Ke3 {[%clk 0:00:03.5]} 65. Qe2+ {[%clk
0:00:12.4]} 65... Kd4 {[%clk 0:00:04.4]} 66. Nb5+ {[%clk 0:00:12]} 66... Kc5
{[%clk 0:00:05.3]} 67. Qf5+ {[%clk 0:00:11.5]} 67... Kb4 {[%clk 0:00:06.2]} 68.
Qd2+ {[%clk 0:00:10.9]} 68... Kc4 {[%clk 0:00:05.2]} 69. Qfd5# {[%clk
0:00:09.4]} 1-0

[Event "Early-Titled-Tuesday-Blitz-September-12-2023"]
[Site "Chess.com"]
[Date "2023.09.12"]
[Round "2"]
[White "whiteglovethief"]
[Black "Iunusovnuriddin"]
[Result "1-0"]
[WhiteElo "2532"]
[BlackElo "2332"]
[TimeControl "180+1"]
[EndTime "8:19:36 PDT"]
[Termination "whiteglovethief won by resignation"]

1. d4 {[%clk 0:02:55.2]} 1... Nf6 {[%clk 0:02:59.8]} 2. c4 {[%clk 0:02:55.5]}
2... g6 {[%clk 0:02:59.9]} 3. Nc3 {[%clk 0:02:54.3]} 3... Bg7 {[%clk 0:03:00.4]}
4. e4 {[%clk 0:02:53.9]} 4... O-O {[%clk 0:03:00.5]} 5. Nf3 {[%clk 0:02:54.6]}
5... d6 {[%clk 0:03:00.7]} 6. Be2 {[%clk 0:02:55.2]} 6... e5 {[%clk 0:03:00.9]}
7. O-O {[%clk 0:02:55.1]} 7... Nbd7 {[%clk 0:03:00.6]} 8. dxe5 {[%clk 0:02:51]}
8... dxe5 {[%clk 0:02:47.7]} 9. h3 {[%clk 0:02:45.9]} 9... Re8 {[%clk
0:02:45.2]} 10. Be3 {[%clk 0:02:45.1]} 10... c6 {[%clk 0:02:44]} 11. c5 {[%clk
0:02:43.2]} 11... Nh5 {[%clk 0:02:25.8]} 12. Qc2 {[%clk 0:02:41.2]} 12... Nf4
{[%clk 0:02:25]} 13. Bc4 {[%clk 0:02:39.6]} 13... Qe7 {[%clk 0:02:05.7]} 14. b4
{[%clk 0:02:32.4]} 14... Nf8 {[%clk 0:02:05.9]} 15. Rfd1 {[%clk 0:02:30.6]}
15... N8e6 {[%clk 0:02:00]} 16. Bf1 {[%clk 0:02:28.3]} 16... Qf6 {[%clk
0:01:45.4]} 17. Nh2 {[%clk 0:01:26.3]} 17... Nd4 {[%clk 0:01:45.3]} 18. Qb2
{[%clk 0:01:19.4]} 18... h5 {[%clk 0:01:12.6]} 19. Ne2 {[%clk 0:01:17.8]} 19...
Rd8 {[%clk 0:00:42.6]} 20. Nxf4 {[%clk 0:01:09.9]} 20... exf4 {[%clk 0:00:41]}
21. Bxd4 {[%clk 0:01:09.9]} 21... Rxd4 {[%clk 0:00:39.9]} 22. Rxd4 {[%clk
0:01:10.2]} 22... Qxd4 {[%clk 0:00:40.8]} 23. Qxd4 {[%clk 0:01:10.4]} 23... Bxd4
{[%clk 0:00:41.7]} 24. Rd1 {[%clk 0:01:10.5]} 24... Bf6 {[%clk 0:00:40.3]} 25.
Nf3 {[%clk 0:01:08.1]} 25... Be6 {[%clk 0:00:40]} 26. e5 {[%clk 0:01:04.7]}
26... Be7 {[%clk 0:00:38]} 27. a3 {[%clk 0:01:02.5]} 27... a5 {[%clk 0:00:37.8]}
28. Nd4 {[%clk 0:01:02.7]} 28... Bd5 {[%clk 0:00:28.3]} 29. Nc2 {[%clk
0:00:56.5]} 29... axb4 {[%clk 0:00:26.9]} 30. axb4 {[%clk 0:00:50.8]} 30... Bb3
{[%clk 0:00:25.9]} 31. Rd7 {[%clk 0:00:48.7]} 31... Bxc5 {[%clk 0:00:13]} 32.
bxc5 {[%clk 0:00:47.9]} 32... Bxc2 {[%clk 0:00:13.5]} 33. Kh2 {[%clk 0:00:40.5]}
33... Ra5 {[%clk 0:00:13.8]} 34. Bc4 {[%clk 0:00:39.5]} 34... Rxc5 {[%clk
0:00:13.4]} 35. Bxf7+ {[%clk 0:00:40.1]} 35... Kf8 {[%clk 0:00:10.4]} 36. e6
{[%clk 0:00:40.7]} 36... Re5 {[%clk 0:00:09.8]} 37. Rxb7 {[%clk 0:00:40.1]}
37... Bf5 {[%clk 0:00:09.6]} 38. Rc7 {[%clk 0:00:37.8]} 38... Bxe6 {[%clk
0:00:09.5]} 39. Bxg6 {[%clk 0:00:38.1]} 39... Bd5 {[%clk 0:00:09.9]} 40. f3
{[%clk 0:00:28.7]} 40... h4 {[%clk 0:00:10.3]} 41. Be4 {[%clk 0:00:27.6]} 41...
Bxe4 {[%clk 0:00:10.2]} 42. fxe4 {[%clk 0:00:28.5]} 42... Rxe4 {[%clk 0:00:11]}
43. Rxc6 {[%clk 0:00:29]} 43... Re2 {[%clk 0:00:11.7]} 44. Rf6+ {[%clk
0:00:29.1]} 44... Kg7 {[%clk 0:00:06.6]} 45. Rxf4 {[%clk 0:00:30]} 45... Kg6
{[%clk 0:00:07]} 46. Rxh4 {[%clk 0:00:28.7]} 46... Kg5 {[%clk 0:00:07.6]} 47.
Rg4+ {[%clk 0:00:29.3]} 47... Kf5 {[%clk 0:00:07.6]} 48. Ra4 {[%clk 0:00:30.2]}
48... Rd2 {[%clk 0:00:07.5]} 49. h4 {[%clk 0:00:30.3]} 49... Rc2 {[%clk
0:00:04.6]} 50. Kh3 {[%clk 0:00:30.3]} 50... Rc3+ {[%clk 0:00:04.1]} 51. g3
{[%clk 0:00:30.7]} 51... Rd3 {[%clk 0:00:04.6]} 52. Rg4 {[%clk 0:00:30.3]} 52...
Rd2 {[%clk 0:00:02.8]} 53. Rg8 {[%clk 0:00:30.2]} 53... Kf6 {[%clk 0:00:03.5]}
54. h5 {[%clk 0:00:28.9]} 54... Rd5 {[%clk 0:00:02.2]} 55. Kh4 {[%clk
0:00:27.1]} 55... Kf7 {[%clk 0:00:02.1]} 56. Rg5 {[%clk 0:00:24.5]} 56... Rd1
{[%clk 0:00:02.5]} 57. Ra5 {[%clk 0:00:21.8]} 57... Rh1+ {[%clk 0:00:02.4]} 58.
Kg5 {[%clk 0:00:21.3]} 58... Rf1 {[%clk 0:00:02.8]} 59. h6 {[%clk 0:00:20.9]}
59... Kg8 {[%clk 0:00:03.4]} 60. Ra8+ {[%clk 0:00:20.4]} 60... Kh7 {[%clk
0:00:03]} 61. Ra7+ {[%clk 0:00:21.3]} 61... Kg8 {[%clk 0:00:03.5]} 62. h7+
{[%clk 0:00:20.2]} 62... Kh8 {[%clk 0:00:02.6]} 63. Kg6 {[%clk 0:00:20.6]} 63...
Rf8 {[%clk 0:00:02.9]} 64. Rf7 {[%clk 0:00:16.5]} 64... Rb8 {[%clk 0:00:01.6]}
65. g4 {[%clk 0:00:16.5]} 65... Rb6+ {[%clk 0:00:02.1]} 66. Rf6 {[%clk
0:00:16.7]} 66... Rb8 {[%clk 0:00:02.7]} 67. Kh6 {[%clk 0:00:16.9]} 67... Re8
{[%clk 0:00:02.6]} 68. Kg6 {[%clk 0:00:17.1]} 68... Rd8 {[%clk 0:00:02.1]} 69.
Re6 {[%clk 0:00:16.2]} 69... Rd6 {[%clk 0:00:01.7]} 70. Kf7 {[%clk 0:00:15.5]}
70... Rxe6 {[%clk 0:00:02]} 71. Kxe6 {[%clk 0:00:16]} 71... Kxh7 {[%clk
0:00:02.9]} 72. Kf6 {[%clk 0:00:15.8]} 72... Kh8 {[%clk 0:00:03.4]} 73. g5
{[%clk 0:00:15.1]} 73... Kg8 {[%clk 0:00:03.9]} 74. Kg6 {[%clk 0:00:15.5]} 74...
Kf8 {[%clk 0:00:04.5]} 75. Kh7 {[%clk 0:00:15.8]} 75... Kf7 {[%clk 0:00:05.4]}
76. g6+ {[%clk 0:00:15.6]} 76... Kf6 {[%clk 0:00:06.3]} 77. g7 {[%clk
0:00:16.3]} 77... Kf5 {[%clk 0:00:07.2]} 78. g8=Q {[%clk 0:00:16.9]} 1-0

[Event "Early-Titled-Tuesday-Blitz-September-12-2023"]
[Site "Chess.com"]
[Date "2023.09.12"]
[Round "2"]
[White "AlleyOoper"]
[Black "tptagain"]
[Result "0-1"]
[WhiteElo "2610"]
[BlackElo "2939"]
[TimeControl "180+1"]
[EndTime "8:19:38 PDT"]
[Termination "tptagain won on time"]

1. d4 {[%clk 0:03:00.9]} 1... d5 {[%clk 0:02:59]} 2. Nf3 {[%clk 0:02:59.8]} 2...
e6 {[%clk 0:02:57.9]} 3. Bf4 {[%clk 0:02:57.6]} 3... Bd6 {[%clk 0:02:57.7]} 4.
Bg3 {[%clk 0:02:57.8]} 4... Nf6 {[%clk 0:02:52.8]} 5. e3 {[%clk 0:02:58.1]} 5...
O-O {[%clk 0:02:52.3]} 6. Nbd2 {[%clk 0:02:54]} 6... c5 {[%clk 0:02:51]} 7. c3
{[%clk 0:02:44.8]} 7... b6 {[%clk 0:02:47.9]} 8. Bd3 {[%clk 0:02:38.5]} 8... Ba6
{[%clk 0:02:46.5]} 9. Bxa6 {[%clk 0:02:38.5]} 9... Nxa6 {[%clk 0:02:47.4]} 10.
O-O {[%clk 0:02:35.4]} 10... Nb8 {[%clk 0:02:46]} 11. Qe2 {[%clk 0:02:33.7]}
11... Bxg3 {[%clk 0:02:36]} 12. hxg3 {[%clk 0:02:33.3]} 12... Nc6 {[%clk
0:02:36.5]} 13. Rfd1 {[%clk 0:02:18.5]} 13... Qe7 {[%clk 0:02:30.1]} 14. dxc5
{[%clk 0:02:15.8]} 14... bxc5 {[%clk 0:02:27.5]} 15. c4 {[%clk 0:02:16.2]} 15...
Rfd8 {[%clk 0:02:12]} 16. cxd5 {[%clk 0:02:16]} 16... exd5 {[%clk 0:02:12.6]}
17. Rac1 {[%clk 0:02:15.3]} 17... a5 {[%clk 0:02:04.7]} 18. Qb5 {[%clk
0:02:11.1]} 18... Nb4 {[%clk 0:01:41]} 19. a3 {[%clk 0:01:54]} 19... Na6 {[%clk
0:01:27.2]} 20. Qxa5 {[%clk 0:01:19.1]} 20... c4 {[%clk 0:01:27.5]} 21. Qc3
{[%clk 0:01:09.2]} 21... Nc5 {[%clk 0:01:27.6]} 22. b4 {[%clk 0:01:07.8]} 22...
Nce4 {[%clk 0:01:25.6]} 23. Nxe4 {[%clk 0:01:02.6]} 23... Nxe4 {[%clk
0:01:26.5]} 24. Qb2 {[%clk 0:01:01.4]} 24... h5 {[%clk 0:00:58.6]} 25. a4 {[%clk
0:01:00.4]} 25... Rxa4 {[%clk 0:00:56.7]} 26. b5 {[%clk 0:00:49.9]} 26... Qb4
{[%clk 0:00:36.1]} 27. Qxb4 {[%clk 0:00:47.8]} 27... Rxb4 {[%clk 0:00:37]} 28.
Ne5 {[%clk 0:00:48.3]} 28... Rb2 {[%clk 0:00:29.8]} 29. Nxc4 {[%clk 0:00:42.7]}
29... Rxf2 {[%clk 0:00:25.2]} 30. b6 {[%clk 0:00:34.1]} 30... Ra2 {[%clk
0:00:20]} 31. b7 {[%clk 0:00:27.7]} 31... Rb8 {[%clk 0:00:15.1]} 32. Rxd5 {[%clk
0:00:21.2]} 32... Rxb7 {[%clk 0:00:15.6]} 33. Nd6 {[%clk 0:00:07.5]} 33... Nxd6
{[%clk 0:00:15.3]} 34. Rxd6 {[%clk 0:00:06.9]} 34... Rbb2 {[%clk 0:00:15.5]} 35.
Rc8+ {[%clk 0:00:06.8]} 35... Kh7 {[%clk 0:00:15.2]} 36. Rd7 {[%clk 0:00:06]}
36... Rxg2+ {[%clk 0:00:15.2]} 37. Kh1 {[%clk 0:00:05.6]} 37... Rh2+ {[%clk
0:00:14.4]} 38. Kg1 {[%clk 0:00:05.6]} 38... Rag2+ {[%clk 0:00:14.3]} 39. Kf1
{[%clk 0:00:06]} 39... Rxg3 {[%clk 0:00:13.8]} 40. Rxf7 {[%clk 0:00:06.2]} 40...
Rxe3 {[%clk 0:00:12.9]} 41. Rcc7 {[%clk 0:00:06.5]} 41... Rg3 {[%clk 0:00:12.8]}
42. Rf5 {[%clk 0:00:05.7]} 42... Rg6 {[%clk 0:00:07.4]} 43. Rff7 {[%clk
0:00:05.8]} 43... Kh6 {[%clk 0:00:07.2]} 44. Rfd7 {[%clk 0:00:06.2]} 44... Rf6+
{[%clk 0:00:07.1]} 45. Kg1 {[%clk 0:00:06.6]} 45... Rh4 {[%clk 0:00:04.8]} 46.
Rxg7 {[%clk 0:00:06.9]} 46... Ra4 {[%clk 0:00:04.4]} 47. Rh7+ {[%clk 0:00:07]}
47... Kg5 {[%clk 0:00:05]} 48. Rcg7+ {[%clk 0:00:07.3]} 48... Kh4 {[%clk
0:00:05.5]} 49. Rg2 {[%clk 0:00:07.5]} 49... Ra1+ {[%clk 0:00:05.7]} 50. Kh2
{[%clk 0:00:07.7]} 50... Rff1 {[%clk 0:00:06]} 51. Rc2 {[%clk 0:00:07.1]} 51...
Rh1+ {[%clk 0:00:06.2]} 52. Kg2 {[%clk 0:00:07]} 52... Rag1+ {[%clk 0:00:06.9]}
53. Kf2 {[%clk 0:00:07.3]} 53... Rg4 {[%clk 0:00:07.5]} 54. Rhc7 {[%clk
0:00:06.5]} 54... Rh2+ {[%clk 0:00:07.5]} 55. Kf3 {[%clk 0:00:07.1]} 55... Rh3+
{[%clk 0:00:04.1]} 56. Kf2 {[%clk 0:00:07]} 56... Rh2+ {[%clk 0:00:04.3]} 57.
Kf3 {[%clk 0:00:07.6]} 57... Rxc2 {[%clk 0:00:03.6]} 58. Rxc2 {[%clk 0:00:07.4]}
58... Kh3 {[%clk 0:00:04.3]} 59. Rc1 {[%clk 0:00:06.9]} 59... Rg3+ {[%clk
0:00:04.6]} 60. Kf2 {[%clk 0:00:07.2]} 60... Rg2+ {[%clk 0:00:04.7]} 61. Kf3
{[%clk 0:00:07.3]} 61... h4 {[%clk 0:00:03.3]} 62. Rc4 {[%clk 0:00:06.8]} 62...
Ra2 {[%clk 0:00:02.5]} 63. Rd4 {[%clk 0:00:05.1]} 63... Rb2 {[%clk 0:00:03]} 64.
Rc4 {[%clk 0:00:05.4]} 64... Rb8 {[%clk 0:00:03.6]} 65. Ra4 {[%clk 0:00:05.4]}
65... Rf8+ {[%clk 0:00:04.1]} 66. Ke2 {[%clk 0:00:05.2]} 66... Kg3 {[%clk
0:00:04]} 67. Ra3+ {[%clk 0:00:03]} 67... Kg2 {[%clk 0:00:04.3]} 68. Ra7 {[%clk
0:00:03.3]} 68... Re8+ {[%clk 0:00:04.3]} 69. Kd2 {[%clk 0:00:02.8]} 69... Rg8
{[%clk 0:00:05]} 0-1

[Event "Early-Titled-Tuesday-Blitz-September-12-2023"]
[Site "Chess.com"]
[Date "2023.09.12"]
[Round "2"]
[White "wqws"]
[Black "charlescandycampbell"]
[Result "1/2-1/2"]
[WhiteElo "2695"]
[BlackElo "2305"]
[TimeControl "180+1"]
[EndTime "8:19:39 PDT"]
[Termination "Game drawn by stalemate"]

1. e4 {[%clk 0:03:00.2]} 1... c6 {[%clk 0:02:59.6]} 2. d4 {[%clk 0:03:00]} 2...
d5 {[%clk 0:03:00.5]} 3. e5 {[%clk 0:03:00.5]} 3... Bf5 {[%clk 0:03:00.6]} 4. h4
{[%clk 0:03:00.8]} 4... h5 {[%clk 0:03:00.7]} 5. c4 {[%clk 0:03:00.8]} 5... dxc4
{[%clk 0:02:59.8]} 6. Bxc4 {[%clk 0:03:00.4]} 6... e6 {[%clk 0:03:00.3]} 7. Nc3
{[%clk 0:03:00.4]} 7... Nd7 {[%clk 0:02:59.7]} 8. Bg5 {[%clk 0:03:00]} 8... Be7
{[%clk 0:03:00]} 9. Nf3 {[%clk 0:02:42.8]} 9... Nb6 {[%clk 0:02:59.1]} 10. Bd3
{[%clk 0:02:39.4]} 10... Bxd3 {[%clk 0:02:57.6]} 11. Qxd3 {[%clk 0:02:40.3]}
11... Nh6 {[%clk 0:02:57.8]} 12. Ne4 {[%clk 0:02:36.3]} 12... Nf5 {[%clk
0:02:57.5]} 13. O-O {[%clk 0:02:32.6]} 13... O-O {[%clk 0:02:53.9]} 14. Ng3
{[%clk 0:02:17.2]} 14... Nxh4 {[%clk 0:02:33.7]} 15. Bxh4 {[%clk 0:02:11.9]}
15... Bxh4 {[%clk 0:02:32.5]} 16. Nxh5 {[%clk 0:02:12.6]} 16... Nd5 {[%clk
0:02:29.2]} 17. Qe4 {[%clk 0:02:05.5]} 17... Be7 {[%clk 0:02:24.7]} 18. g3
{[%clk 0:01:58.7]} 18... g6 {[%clk 0:02:24.9]} 19. Nf4 {[%clk 0:01:55.9]} 19...
Kg7 {[%clk 0:02:23.7]} 20. Kg2 {[%clk 0:01:53]} 20... Nxf4+ {[%clk 0:02:23.6]}
21. Qxf4 {[%clk 0:01:52.9]} 21... Qd5 {[%clk 0:02:24.2]} 22. Rh1 {[%clk
0:01:25.6]} 22... Rh8 {[%clk 0:02:23.8]} 23. b3 {[%clk 0:01:24.8]} 23... Rad8
{[%clk 0:02:21]} 24. g4 {[%clk 0:01:18]} 24... g5 {[%clk 0:02:15.3]} 25. Qe3
{[%clk 0:01:16.1]} 25... f5 {[%clk 0:02:08.8]} 26. exf6+ {[%clk 0:00:55.2]}
26... Bxf6 {[%clk 0:02:07.7]} 27. Rxh8 {[%clk 0:00:54.7]} 27... Rxh8 {[%clk
0:02:06.2]} 28. Re1 {[%clk 0:00:55.4]} 28... Rh4 {[%clk 0:01:43.9]} 29. Qe4
{[%clk 0:00:48.9]} 29... Rh8 {[%clk 0:01:16.1]} 30. Qxe6 {[%clk 0:00:48.3]}
30... Rd8 {[%clk 0:01:13]} 31. Qxd5 {[%clk 0:00:47.8]} 31... Rxd5 {[%clk
0:01:13.3]} 32. Re4 {[%clk 0:00:47.4]} 32... c5 {[%clk 0:01:07.5]} 33. dxc5
{[%clk 0:00:46.5]} 33... Rxc5 {[%clk 0:01:08.4]} 34. Ra4 {[%clk 0:00:45.9]}
34... a6 {[%clk 0:01:08.1]} 35. Rc4 {[%clk 0:00:44]} 35... Rxc4 {[%clk
0:01:05.5]} 36. bxc4 {[%clk 0:00:44.9]} 36... Kf7 {[%clk 0:01:06.4]} 37. Kf1
{[%clk 0:00:44.8]} 37... Ke6 {[%clk 0:01:06.9]} 38. Ke2 {[%clk 0:00:45.2]} 38...
Kd6 {[%clk 0:01:07.8]} 39. Kd3 {[%clk 0:00:44.5]} 39... Kc5 {[%clk 0:01:08.3]}
40. Nd2 {[%clk 0:00:43.8]} 40... Be7 {[%clk 0:01:04.7]} 41. Kc3 {[%clk
0:00:41.6]} 41... Bf6+ {[%clk 0:01:03.6]} 42. Kd3 {[%clk 0:00:40.1]} 42... Be7
{[%clk 0:01:03.7]} 43. a3 {[%clk 0:00:39.5]} 43... Kc6 {[%clk 0:00:55.7]} 44. a4
{[%clk 0:00:39.4]} 44... Kc5 {[%clk 0:00:49.7]} 45. Kc3 {[%clk 0:00:39.3]} 45...
Bf6+ {[%clk 0:00:49.4]} 46. Kb3 {[%clk 0:00:38.7]} 46... Kd4 {[%clk 0:00:46.7]}
47. Nb1 {[%clk 0:00:16.4]} 47... Kd3 {[%clk 0:00:43.5]} 48. a5 {[%clk
0:00:14.4]} 48... Bd4 {[%clk 0:00:42.1]} 49. f3 {[%clk 0:00:13.3]} 49... Ke3
{[%clk 0:00:41.2]} 50. Nc3 {[%clk 0:00:10.9]} 50... Bxc3 {[%clk 0:00:38]} 51.
Kxc3 {[%clk 0:00:10.3]} 51... Kxf3 {[%clk 0:00:38.4]} 52. Kd4 {[%clk 0:00:10.9]}
52... Kxg4 {[%clk 0:00:39.3]} 53. Kc5 {[%clk 0:00:11.8]} 53... Kf5 {[%clk
0:00:36.2]} 54. Kb6 {[%clk 0:00:12.3]} 54... g4 {[%clk 0:00:36.8]} 55. Kxb7
{[%clk 0:00:13.2]} 55... g3 {[%clk 0:00:37.6]} 56. c5 {[%clk 0:00:13.9]} 56...
g2 {[%clk 0:00:37.9]} 57. c6 {[%clk 0:00:14.6]} 57... g1=Q {[%clk 0:00:38.8]}
58. c7 {[%clk 0:00:15.3]} 58... Qg2+ {[%clk 0:00:26.9]} 59. Kb8 {[%clk
0:00:14.1]} 59... Qb2+ {[%clk 0:00:24.1]} 60. Ka8 {[%clk 0:00:14.3]} 60... Qc3
{[%clk 0:00:22.9]} 61. Kb8 {[%clk 0:00:13.6]} 61... Qb4+ {[%clk 0:00:22.9]} 62.
Ka8 {[%clk 0:00:13.5]} 62... Qc5 {[%clk 0:00:21.8]} 63. Kb8 {[%clk 0:00:13.3]}
63... Qd6 {[%clk 0:00:21.5]} 64. Ka8 {[%clk 0:00:12.4]} 64... Qd7 {[%clk
0:00:06.2]} 65. Kb8 {[%clk 0:00:12.1]} 65... Qb5+ {[%clk 0:00:06.2]} 66. Ka8
{[%clk 0:00:12.3]} 66... Qc6+ {[%clk 0:00:06.1]} 67. Kb8 {[%clk 0:00:12.6]}
67... Qd6 {[%clk 0:00:03.6]} 68. Ka8 {[%clk 0:00:12.5]} 68... Qxc7 {[%clk
0:00:02.5]} 1/2-1/2